fUST/lending_fUST_20250809
["ID","MTS","AMOUNT","RATE_DAILY","PERIOD"]
[378110352,1754735440702,-462.24035906,0.00021972,2]
[378110353,1754735440712,-460.0,0.00021972,2]
[378110354,1754735440722,-500.0,0.00021972,2]
[378110355,1754735440731,-500.0,0.00021972,2]
[378110356,1754735440741,-460.0,0.00021972,2]
[378110357,1754735440750,-460.0,0.00021972,2]
[378110358,1754735440759,-1397.01,0.00021972,2]
[378110359,1754735440768,-460.0,0.00021972,2]
[378110360,1754735440778,-294.37271199,0.00021972,2]
[378110361,1754735440788,-913.52,0.00021972,2]
[378110362,1754735440799,-460.0,0.00021972,2]
[378110363,1754735440807,-467.62036259,0.00021972,2]
[378110364,1754735440816,-460.0,0.00021972,2]
[378110365,1754735440826,-200.0,0.00021972,10]
[378110366,1754735440835,-460.0,0.00021972,2]
[378110367,1754735440844,-460.0,0.00021972,2]
[378110368,1754735440857,-460.0,0.00021972,2]
[378110369,1754735440866,-1377.11,0.00021972,2]
[378110370,1754735440876,-460.0,0.00021972,2]
[378110371,1754735440886,-460.0,0.00021972,2]
[378110372,1754735440895,-460.0,0.00021972,2]
[378110373,1754735440906,-460.0,0.00021972,2]
[378110374,1754735440915,-500.0,0.00021973,2]
[378110375,1754735440925,-500.0,0.00021973,2]
[378110376,1754735440935,-500.0,0.00021973,2]
[378110377,1754735440946,-500.00704294,0.00021973,2]
[378110378,1754735440955,-500.0,0.00021973,2]
[378110379,1754735440964,-500.0,0.00021973,2]
[378110380,1754735440973,-500.0,0.00021973,2]
[378110381,1754735440983,-500.0,0.00021973,2]
[378110382,1754735440992,-500.0,0.00021973,2]
[378110383,1754735441003,-500.0,0.00021973,2]
[378110384,1754735441012,-500.0,0.00021973,2]
[378110385,1754735441021,-500.0,0.00021973,2]
[378110386,1754735441031,-202.47369106,0.00021973,2]
[378110387,1754735441040,-500.0,0.00021973,2]
[378110388,1754735441051,-500.0,0.00021973,2]
[378110389,1754735441060,-500.0,0.00021973,2]
[378110390,1754735441069,-151.0,0.00021977,2]
[378110391,1754735441079,-169.86155377,0.00021977,2]
[378110392,1754735441089,-151.0,0.00021977,2]
[378110393,1754735441098,-151.0,0.00021977,2]
[378110394,1754735441108,-151.0,0.00021977,2]
[378110395,1754735441118,-151.0,0.00021977,2]
[378110396,1754735441129,-151.0,0.00021977,2]
[378110397,1754735441139,-151.0,0.00021977,2]
[378110398,1754735441149,-500.0,0.00021977,2]
[378110399,1754735441161,-151.0,0.00021977,2]
[378110400,1754735441174,-400.0,0.00021977,2]
[378110401,1754735441183,-151.0,0.00021977,2]
[378110402,1754735441193,-151.0,0.00021977,2]
[378110403,1754735441202,-151.0,0.00021977,2]
[378110404,1754735441218,-151.0,0.00021977,2]
[378110405,1754735441230,-151.0,0.00021977,2]
[378110406,1754735441240,-151.0,0.00021977,2]
[378110407,1754735441250,-151.0,0.00021977,2]
[378110408,1754735441259,-201.55,0.0002198,3]
[378110409,1754735441270,-684.63,0.0002198,3]
[378110410,1754735441278,-342.32,0.0002198,3]
[378110411,1754735441288,-171.16,0.0002198,3]
[378110412,1754735441298,-513.48,0.0002198,3]
[378110413,1754735441307,-196.74,0.0002198,10]
[378110414,1754735441316,-55668.68347796,0.0002199,2]
[378110424,1754735442898,-500.0,0.00021916,2]
[378110425,1754735442908,-500.0,0.00021916,2]
[378110426,1754735442918,-500.0,0.00021916,2]
[378110427,1754735442931,-500.0,0.00021916,2]
[378110428,1754735442951,-399.5333399,0.00021916,2]
[378110429,1754735442963,-342.93730182,0.00021916,2]
[378110430,1754735442973,-300.0,0.00021971,2]
[378110431,1754735442982,-402.79805351,0.00021972,2]
[378110433,1754735443067,-57.20194649,0.00021972,2]
[378110434,1754735443077,-1046.13,0.00021972,2]
[378110435,1754735443087,-2288.13580899,0.0002199,2]
[378110496,1754735447014,-500.0,0.00021916,2]
[378110497,1754735447024,-232.32490125,0.00021916,2]
[378110498,1754735447700,-144.87438911,0.00021916,2]
[378110499,1754735447709,-482.09356769,0.00021916,2]
[378110500,1754735447719,-500.0,0.00021916,2]
[378110501,1754735447727,-460.0,0.00021917,2]
[378110502,1754735447737,-42043.18071305,0.0002199,2]
[378110503,1754735447746,-151.0,0.00022,2]
[378110504,1754735447755,-354.14488018,0.00022,2]
[378110505,1754735447764,-156.04,0.00022,2]
[378110506,1754735447774,-196.0,0.00022,2]
[378110507,1754735447784,-1136.64,0.00022,2]
[378110508,1754735447793,-500.0,0.00022173,2]
[378110509,1754735447803,-500.0,0.00022173,2]
[378110510,1754735447813,-500.0,0.00022173,2]
[378110511,1754735447823,-500.0,0.00022173,2]
[378110512,1754735447832,-500.0,0.00022173,2]
[378110513,1754735447842,-500.0,0.00022173,2]
[378110514,1754735447852,-500.0,0.00022173,2]
[378110515,1754735447865,-500.0,0.00022173,2]
[378110516,1754735447875,-500.0,0.00022173,2]
[378110517,1754735447884,-500.0,0.00022173,2]
[378110518,1754735447894,-500.0,0.00022173,2]
[378110519,1754735447903,-600.0,0.00022173,2]
[378110520,1754735447914,-500.0,0.00022173,2]
[378110521,1754735447923,-500.0,0.00022173,2]
[378110522,1754735447933,-500.26258628,0.00022173,2]
[378110523,1754735447943,-500.0,0.00022173,2]
[378110524,1754735447952,-434.168058,0.00022173,2]
[378110525,1754735447961,-509.79912995,0.00022173,2]
[378110526,1754735447971,-475.02642061,0.00022173,2]
[378110527,1754735447980,-948.32,0.00022189,2]
[378110528,1754735447989,-460.0,0.00022189,2]
[378110529,1754735447999,-460.0,0.00022189,2]
[378110530,1754735448010,-1268.36,0.00022189,2]
[378110531,1754735448019,-530.3,0.00022189,2]
[378110532,1754735448029,-1536.67,0.00022189,2]
[378110533,1754735448039,-460.0,0.0002219,2]
[378110534,1754735448048,-460.0,0.0002219,2]
[378110535,1754735448058,-461.31167703,0.0002219,2]
[378110536,1754735448067,-460.0,0.0002219,2]
[378110537,1754735448077,-460.0,0.0002219,2]
[378110538,1754735448086,-460.0,0.0002219,2]
[378110539,1754735448096,-283.51060805,0.0002219,2]
[378110540,1754735448105,-460.0,0.0002219,2]
[378110541,1754735448116,-460.0,0.0002219,2]
[378110542,1754735448125,-464.54682138,0.0002219,2]
[378110543,1754735448136,-460.0,0.0002219,2]
[378110544,1754735448145,-460.0,0.0002219,2]
[378110545,1754735448154,-460.0,0.0002219,2]
[378110546,1754735448165,-460.0,0.0002219,2]
[378110547,1754735448175,-460.0,0.0002219,2]
[378110548,1754735448185,-460.0,0.0002219,2]
[378110549,1754735448195,-462.20963154,0.0002219,2]
[378110550,1754735448206,-535.13,0.0002219,2]
[378110551,1754735448217,-460.0,0.0002219,2]
[378110552,1754735448228,-460.0,0.0002219,2]
[378110553,1754735448240,-460.0,0.0002219,2]
[378110554,1754735448250,-460.0,0.0002219,2]
[378110555,1754735448260,-460.0,0.0002219,2]
[378110556,1754735448270,-460.0,0.0002219,2]
[378110557,1754735448280,-460.0,0.0002219,2]
[378110558,1754735448290,-460.0,0.0002219,2]
[378110559,1754735448300,-734.45,0.0002219,2]
[378110560,1754735448309,-460.0,0.0002219,2]
[378110561,1754735448319,-460.0,0.0002219,2]
[378110562,1754735448330,-460.0,0.0002219,2]
[378110563,1754735448339,-460.0,0.0002219,2]
[378110564,1754735448348,-460.0,0.0002219,2]
[378110565,1754735448359,-460.0,0.0002219,2]
[378110566,1754735448368,-694.19,0.0002219,2]
[378110567,1754735448378,-460.0,0.0002219,2]
[378110568,1754735448388,-806.97,0.0002219,2]
[378110569,1754735448399,-460.0,0.0002219,2]
[378110570,1754735448408,-460.0,0.0002219,2]
[378110571,1754735448420,-460.0,0.00022191,2]
[378110572,1754735448430,-460.0,0.00022191,2]
[378110573,1754735448439,-460.0,0.00022191,2]
[378110574,1754735448567,-460.0,0.00022191,2]
[378110575,1754735448607,-196.0,0.00022192,7]
[378110576,1754735448617,-850.8,0.00022243,2]
[378110577,1754735448627,-2551.99,0.00022243,2]
[378110578,1754735448636,-460.0,0.00022243,2]
[378110579,1754735448646,-617.29,0.00022243,2]
[378110580,1754735448655,-460.0,0.00022243,2]
[378110581,1754735448667,-2426.46,0.00022243,2]
[378110582,1754735448676,-2212.86,0.00022243,2]
[378110583,1754735448686,-460.0,0.00022243,2]
[378110584,1754735448695,-460.0,0.00022243,2]
[378110585,1754735448704,-1240.44,0.00022243,2]
[378110586,1754735448714,-646.1,0.00022243,2]
[378110587,1754735448723,-460.0,0.00022243,2]
[378110588,1754735448732,-460.0,0.00022243,2]
[378110589,1754735448742,-540.58,0.00022243,2]
[378110590,1754735448752,-462.43,0.00022243,2]
[378110591,1754735448762,-460.0,0.00022243,2]
[378110592,1754735448772,-460.0,0.00022243,2]
[378110593,1754735448781,-960.32,0.00022243,2]
[378110594,1754735448790,-460.0,0.00022243,2]
[378110595,1754735448800,-689.4,0.00022243,2]
[378110596,1754735448809,-727.63,0.00022243,2]
[378110597,1754735448818,-596.95,0.00022243,2]
[378110598,1754735448828,-460.0,0.00022244,2]
[378110599,1754735448837,-460.0,0.00022244,2]
[378110600,1754735448846,-1348.57,0.00022244,2]
[378110601,1754735448856,-460.0,0.00022245,2]
[378110602,1754735448868,-518.04,0.00022245,2]
[378110603,1754735448878,-460.0,0.00022245,2]
[378110604,1754735448888,-467.41,0.00022245,2]
[378110605,1754735448899,-460.0,0.00022245,2]
[378110606,1754735448911,-460.0,0.00022245,2]
[378110607,1754735448920,-460.0,0.00022245,2]
[378110608,1754735448931,-460.0,0.00022245,2]
[378110609,1754735448941,-460.0,0.00022245,2]
[378110610,1754735448951,-460.0,0.00022245,2]
[378110611,1754735448961,-460.0,0.00022245,2]
[378110612,1754735448971,-460.0,0.00022245,2]
[378110613,1754735448980,-460.0,0.00022245,2]
[378110614,1754735448989,-464.34793065,0.00022245,2]
[378110615,1754735448999,-460.0,0.00022245,2]
[378110616,1754735449009,-351.95889763,0.00022245,2]
[378110617,1754735449020,-460.0,0.00022245,2]
[378110618,1754735449030,-460.0,0.00022245,2]
[378110619,1754735449040,-219.92921328,0.00022245,2]
[378110620,1754735449050,-460.0,0.00022245,2]
[378110621,1754735449059,-460.0,0.00022245,2]
[378110622,1754735449069,-460.0,0.00022245,2]
[378110623,1754735449079,-504.94,0.00022245,2]
[378110624,1754735449089,-460.0,0.00022245,2]
[378110625,1754735449098,-460.0,0.00022245,2]
[378110626,1754735449108,-460.0,0.00022245,2]
[378110627,1754735449118,-525.29,0.00022245,2]
[378110628,1754735449127,-460.0,0.00022245,2]
[378110629,1754735449137,-697.74,0.00022245,2]
[378110630,1754735449147,-460.0,0.00022245,2]
[378110631,1754735449156,-460.0,0.00022245,2]
[378110632,1754735449166,-460.0,0.00022245,2]
[378110633,1754735449175,-460.0,0.00022245,2]
[378110634,1754735449184,-805.74,0.00022245,2]
[378110635,1754735449193,-460.0,0.00022245,2]
[378110636,1754735449203,-775.34,0.00022245,2]
[378110637,1754735449213,-468.15,0.00022245,2]
[378110638,1754735449222,-460.0,0.00022245,2]
[378110639,1754735449231,-460.0,0.00022245,2]
[378110640,1754735449240,-460.0,0.00022245,2]
[378110641,1754735449250,-609.76,0.00022245,2]
[378110642,1754735449260,-460.25,0.00022245,2]
[378110643,1754735449269,-460.0,0.00022245,2]
[378110644,1754735449278,-460.0,0.00022245,2]
[378110645,1754735449287,-465.27623997,0.00022246,2]
[378110646,1754735449296,-460.0,0.00022246,2]
[378110647,1754735449306,-460.0,0.00022246,2]
[378110648,1754735449315,-460.0,0.00022246,2]
[378110649,1754735449325,-270.46455732,0.00022246,2]
[378110650,1754735449334,-255.96048759,0.00022246,2]
[378110651,1754735449344,-460.0,0.00022246,2]
[378110652,1754735449354,-460.0,0.00022246,2]
[378110653,1754735449363,-460.0,0.00022246,2]
[378110654,1754735449372,-460.0,0.00022246,2]
[378110655,1754735449381,-482.16,0.00022246,2]
[378110656,1754735449391,-460.0,0.00022246,2]
[378110657,1754735449400,-460.0,0.00022246,2]
[378110658,1754735449410,-524.37178518,0.00022246,2]
[378110659,1754735449419,-460.0,0.00022246,2]
[378110660,1754735449428,-460.0,0.00022246,2]
[378110661,1754735449437,-366.62,0.00022246,2]
[378110662,1754735449446,-916.41,0.00022246,2]
[378110663,1754735449455,-469.25,0.00022246,2]
[378110664,1754735449465,-460.0,0.00022246,2]
[378110665,1754735449474,-4196.29,0.00022246,2]
[378110666,1754735449484,-460.76143451,0.00022246,2]
[378110667,1754735449493,-460.0,0.00022246,2]
[378110668,1754735449504,-2301.99,0.00022246,2]
[378110669,1754735449513,-460.0,0.00022246,2]
[378110670,1754735449523,-1295.01,0.00022246,2]
[378110671,1754735449533,-460.0,0.00022246,2]
[378110672,1754735449543,-460.0,0.00022246,2]
[378110673,1754735449552,-460.0,0.00022246,2]
[378110674,1754735449562,-460.0,0.00022246,2]
[378110675,1754735449573,-461.48970758,0.00022246,2]
[378110676,1754735449583,-1397.01,0.00022246,2]
[378110677,1754735449592,-460.0,0.00022246,2]
[378110678,1754735449601,-913.52,0.00022246,2]
[378110679,1754735449612,-1377.11,0.00022246,2]
[378110680,1754735449622,-460.0,0.00022246,2]
[378110681,1754735449631,-460.0,0.00022246,2]
[378110682,1754735449641,-297.00183219,0.00022246,2]
[378110683,1754735449650,-1046.13,0.00022246,2]
[378110684,1754735449660,-160.0,0.00022255,2]
[378110685,1754735449669,-160.0,0.00022255,2]
[378110686,1754735449678,-160.0,0.00022259,2]
[378110687,1754735449687,-12666.14847857,0.00022259,2]
[378110688,1754735449697,-160.0,0.0002226,2]
[378110689,1754735449706,-160.0,0.0002226,2]
[378110690,1754735449715,-312.16666667,0.0002226,2]
[378110691,1754735449724,-231.92402426,0.0002226,2]
[378110692,1754735449733,-215.40758176,0.0002226,2]
[378110693,1754735449743,-842.95011917,0.0002226,2]
[378110694,1754735449752,-160.0,0.0002226,2]
[378110695,1754735449762,-216.61183532,0.0002226,2]
[378110696,1754735449771,-160.0,0.0002226,2]
[378110697,1754735449780,-160.0,0.0002226,2]
[378110698,1754735449789,-461.55179734,0.0002226,2]
[378110699,1754735449799,-200.0,0.00022307,15]
[378110700,1754735449808,-200.0,0.00022307,15]
[378110701,1754735449818,-200.0,0.00022307,15]
[378110702,1754735449827,-200.0,0.00022307,15]
[378110703,1754735449836,-200.0,0.00022307,15]
[378110704,1754735449845,-424.189,0.0002234,2]
[378110705,1754735449855,-168.0,0.00022361,2]
[378110706,1754735449868,-322.56078917,0.0002243,2]
[378110707,1754735449877,-948.32,0.00022463,2]
[378110708,1754735449887,-460.0,0.00022463,2]
[378110709,1754735449896,-1268.36,0.00022463,2]
[378110710,1754735449906,-530.3,0.00022463,2]
[378110711,1754735449917,-1536.67,0.00022463,2]
[378110712,1754735449927,-151.0,0.00022464,7]
[378110713,1754735449936,-156.127384,0.00022464,7]
[378110714,1754735449946,-151.0,0.00022464,7]
[378110715,1754735449955,-151.0,0.00022464,7]
[378110716,1754735449965,-152.504182,0.00022464,7]
[378110717,1754735449974,-151.0,0.00022464,7]
[378110718,1754735449983,-151.0,0.00022464,7]
[378110719,1754735449992,-151.0,0.00022464,7]
[378110720,1754735450002,-460.0,0.00022464,2]
[378110721,1754735450011,-460.0,0.00022464,2]
[378110722,1754735450021,-535.13,0.00022464,2]
[378110723,1754735450030,-592.60485104,0.00022464,2]
[378110724,1754735450039,-460.0,0.00022464,2]
[378110725,1754735450049,-460.0,0.00022464,2]
[378110726,1754735450058,-460.0,0.00022464,2]
[378110727,1754735450068,-734.45,0.00022464,2]
[378110728,1754735450077,-460.0,0.00022464,2]
[378110729,1754735450087,-460.0,0.00022464,2]
[378110730,1754735450096,-460.0,0.00022464,2]
[378110731,1754735450106,-460.0,0.00022464,2]
[378110732,1754735450115,-694.19,0.00022464,2]
[378110733,1754735450125,-389.38239756,0.00022464,2]
[378110734,1754735450134,-806.97,0.00022464,2]
[378110735,1754735450144,-460.0,0.00022464,2]
[378110736,1754735450153,-460.0,0.00022465,2]
[378110737,1754735450164,-460.0,0.00022465,2]
[378110738,1754735450173,-460.0,0.00022465,2]
[378110739,1754735450182,-460.0,0.00022465,2]
[378110740,1754735450192,-850.8,0.00022517,2]
[378110741,1754735450201,-2551.99,0.00022517,2]
[378110742,1754735450211,-460.0,0.00022517,2]
[378110743,1754735450220,-617.29,0.00022517,2]
[378110744,1754735450229,-460.0,0.00022517,2]
[378110745,1754735450238,-2426.46,0.00022517,2]
[378110746,1754735450248,-2212.86,0.00022517,2]
[378110747,1754735450257,-460.0,0.00022517,2]
[378110748,1754735450266,-1240.44,0.00022517,2]
[378110749,1754735450275,-646.1,0.00022517,2]
[378110750,1754735450284,-460.0,0.00022517,2]
[378110751,1754735450295,-460.0,0.00022517,2]
[378110752,1754735450304,-540.58,0.00022517,2]
[378110753,1754735450314,-462.43,0.00022517,2]
[378110754,1754735450323,-460.0,0.00022517,2]
[378110755,1754735450333,-190.93372306,0.00022517,2]
[378110757,1754735578358,7690.72433413,0.000199,2]
[378110758,1754735583588,105062.39694631,0.00028,30]
[378110759,1754735604830,341.5715874,0.00020893,2]
[378110760,1754735767202,3428.39649556,0.000199,2]
[378110761,1754735767228,4570.3155086,0.000199,2]
[378110765,1754735844437,-187.91991152,0.00021655,2]
[378110766,1754735846816,-509.56284482,0.00021655,2]
[378110767,1754735849492,-238.9394979,0.00021655,2]
[378110768,1754735852691,-443.25046117,0.00021655,2]
[378110769,1754735855755,-363.92957975,0.00021655,2]
[378110770,1754735858074,-294.17372296,0.00021655,2]
[378110771,1754735859780,278.28994635,0.00021005,2]
[378110772,1754735881086,-287.34409566,0.00021655,2]
[378110773,1754735883367,-157.95899934,0.00021655,2]
[378110774,1754735895785,-300.0,0.00021655,2]
[378110775,1754735899675,-195.92608958,0.00021655,2]
[378110776,1754735902790,-272.99329005,0.00021655,2]
[378110777,1754735905894,-181.57891722,0.00021655,2]
[378110778,1754735907957,-228.60670387,0.00021655,2]
[378110779,1754735909985,-152.54065501,0.00021655,2]
[378110780,1754735948818,7604.93077848,0.000199,2]
[378110781,1754735975409,46.46376657,0.00020863,2]
[378110782,1754735975430,131.09079943,0.00020863,2]
[378110783,1754736021498,624.5706156,0.00020824,2]
[378110784,1754736135194,7351.43308598,0.000199,2]
[378110786,1754736140615,510.199249,0.00013699,2]
[378110787,1754736140823,510.199249,0.00020187,2]
[378110788,1754736152916,195.92608958,0.0002138,2]
[378110789,1754736161806,166.97396781,0.00021005,2]
[378110791,1754736200103,466.21,0.00031688,30]
[378110806,1754736318673,3009.6069436,0.000199,2]
[378110807,1754736318710,4096.77837277,0.000199,2]
[378110821,1754736368506,320.78399066,0.00030136,120]
[378110824,1754736391517,8403.22162723,0.00020815,2]
[378110825,1754736391539,12500.0,0.00020815,2]
[378110826,1754736391562,3996.77837277,0.00020815,2]
[378110849,1754736499246,6869.50580595,0.000199,2]
[378110853,1754736602121,1633.71582128,0.00020791,2]
[378110854,1754736602144,1274.89723682,0.00020791,2]
[378110855,1754736617839,150.0,0.000189,2]
[378110895,1754736632087,-300.0,0.00021653,2]
[378110897,1754736632097,-222.32389176,0.00021653,2]
[378110938,1754736632658,-77.67610824,0.00021653,2]
[378110939,1754736632668,-300.0,0.00021653,2]
[378110940,1754736632677,-94.31376705,0.00021653,2]
[378111002,1754736638041,-1105.68623295,0.00021653,2]
[378111004,1754736638051,-300.0,0.00021653,2]
[378111006,1754736638061,-300.0,0.00021653,2]
[378111008,1754736638071,-3886.45047035,0.00021655,2]
[378111011,1754736638082,-2983.05533534,0.00021655,2]
[378111013,1754736638091,-260.0,0.00021655,2]
[378111015,1754736638101,-1477.75539787,0.00021655,2]
[378111017,1754736638111,-1330.39474863,0.00021773,2]
[378111019,1754736638120,-761.3341439,0.00021817,2]
[378111020,1754736638129,-8519.02402235,0.00021859,2]
[378111021,1754736638138,-225.21,0.00021859,10]
[378111022,1754736638149,-187.68,0.00021859,10]
[378111023,1754736638158,-500.0,0.00021868,2]
[378111024,1754736638171,-500.0,0.00021868,2]
[378111025,1754736638180,-155.50370443,0.00021868,2]
[378111026,1754736638189,-9326.85743024,0.00021869,2]
[378111027,1754736638202,-90808.65278061,0.00021869,2]
[378111028,1754736638212,-500.0,0.00021904,2]
[378111029,1754736638221,-500.0,0.00021904,2]
[378111030,1754736638233,-500.0,0.00021904,2]
[378111031,1754736638243,-500.0,0.00021904,2]
[378111032,1754736638252,-500.0,0.00021904,2]
[378111033,1754736638262,-151.0,0.00021904,2]
[378111034,1754736638271,-500.0,0.00021904,2]
[378111035,1754736638282,-500.0,0.00021904,2]
[378111036,1754736638292,-151.0,0.00021904,2]
[378111037,1754736638301,-500.0,0.00021904,2]
[378111038,1754736638312,-151.0,0.00021904,2]
[378111039,1754736638322,-300.0,0.00021904,2]
[378111040,1754736638331,-151.0,0.00021904,2]
[378111041,1754736638341,-151.0,0.00021904,2]
[378111042,1754736638350,-151.0,0.00021904,2]
[378111043,1754736638359,-151.0,0.00021904,2]
[378111044,1754736638368,-151.0,0.00021904,2]
[378111045,1754736638377,-151.0,0.00021904,2]
[378111046,1754736638387,-151.0,0.00021904,2]
[378111047,1754736638396,-151.0,0.00021904,2]
[378111048,1754736638406,-151.0,0.00021904,2]
[378111049,1754736638415,-151.0,0.00021904,2]
[378111050,1754736638425,-151.0,0.00021904,2]
[378111051,1754736638434,-151.0,0.00021904,2]
[378111052,1754736638444,-151.0,0.00021904,2]
[378111053,1754736638453,-151.0,0.00021904,2]
[378111054,1754736638462,-151.0,0.00021904,2]
[378111055,1754736638471,-151.0,0.00021904,2]
[378111056,1754736638481,-151.0,0.00021904,2]
[378111057,1754736638490,-151.0,0.00021904,2]
[378111058,1754736638500,-151.0,0.00021904,2]
[378111059,1754736638509,-196.54967591,0.00021904,2]
[378111060,1754736638519,-250.0,0.00021904,2]
[378111061,1754736638528,-250.0,0.00021904,2]
[378111062,1754736638538,-250.0,0.00021904,2]
[378111063,1754736638547,-250.0,0.00021904,2]
[378111064,1754736638556,-250.0,0.00021904,2]
[378111065,1754736638565,-250.0,0.00021904,2]
[378111066,1754736638575,-250.0,0.00021904,2]
[378111067,1754736638584,-151.0,0.00021904,2]
[378111068,1754736638593,-151.0,0.00021904,2]
[378111069,1754736638603,-151.0,0.00021904,2]
[378111070,1754736638612,-627.86,0.00021907,3]
[378111071,1754736638621,-313.93,0.00021907,3]
[378111072,1754736638630,-156.97,0.00021907,3]
[378111073,1754736638639,-470.93,0.00021907,3]
[378111074,1754736638648,-500.0,0.00021916,2]
[378111075,1754736638658,-180.13895927,0.00021916,2]
[378111076,1754736638667,-500.0,0.00021916,2]
[378111077,1754736638676,-500.0,0.00021916,2]
[378111078,1754736638685,-456.30758442,0.00021916,2]
[378111079,1754736638695,-500.0,0.00021916,2]
[378111080,1754736638705,-500.0,0.00021916,2]
[378111081,1754736638714,-500.0,0.00021916,2]
[378111082,1754736638723,-500.0,0.00021916,2]
[378111083,1754736638733,-500.0,0.00021916,2]
[378111084,1754736638742,-460.0,0.00021917,2]
[378111085,1754736638752,-460.0,0.00021917,2]
[378111086,1754736638761,-460.0,0.00021917,2]
[378111087,1754736638770,-460.0,0.00021917,2]
[378111088,1754736638780,-460.0,0.00021917,2]
[378111089,1754736638791,-460.0,0.00021917,2]
[378111090,1754736638801,-460.0,0.00021917,2]
[378111091,1754736638811,-460.0,0.00021917,2]
[378111092,1754736638820,-460.0,0.00021917,2]
[378111093,1754736638829,-210.6470468,0.00021917,2]
[378111094,1754736638839,-460.0,0.00021917,2]
[378111095,1754736638848,-460.0,0.00021917,2]
[378111096,1754736638857,-460.0,0.00021917,2]
[378111097,1754736638867,-460.0,0.00021917,2]
[378111098,1754736638876,-467.99184671,0.00021917,2]
[378111099,1754736638886,-544.81380424,0.00021917,2]
[378111100,1754736638895,-460.0,0.00021917,2]
[378111101,1754736638904,-463.29545648,0.00021917,2]
[378111102,1754736638914,-460.0,0.00021917,2]
[378111103,1754736638923,-460.0,0.00021917,2]
[378111104,1754736638932,-460.0,0.00021917,2]
[378111105,1754736638942,-460.0,0.00021917,2]
[378111106,1754736638951,-460.0,0.00021917,2]
[378111107,1754736638960,-461.20281249,0.00021917,2]
[378111108,1754736638969,-460.0,0.00021917,2]
[378111109,1754736638979,-460.0,0.00021917,2]
[378111110,1754736638988,-460.0,0.00021917,2]
[378111111,1754736638997,-458.31890278,0.00021917,2]
[378111112,1754736639007,-460.0,0.00021917,2]
[378111113,1754736639016,-460.0,0.00021917,2]
[378111114,1754736639026,-460.0,0.00021917,2]
[378111115,1754736639035,-460.0,0.00021917,2]
[378111116,1754736639044,-460.0,0.00021917,2]
[378111117,1754736639054,-381.71185404,0.00021917,2]
[378111118,1754736639064,-460.0,0.00021917,2]
[378111119,1754736639073,-460.0,0.00021917,2]
[378111120,1754736639083,-460.0,0.00021917,2]
[378111121,1754736639093,-460.0,0.00021917,2]
[378111122,1754736639103,-460.0,0.00021917,2]
[378111123,1754736639112,-475.61987915,0.00021917,2]
[378111124,1754736639121,-460.0,0.00021917,2]
[378111125,1754736639131,-460.0,0.00021917,2]
[378111126,1754736639141,-460.0,0.00021917,2]
[378111127,1754736639151,-460.0,0.00021917,2]
[378111128,1754736639161,-460.0,0.00021917,2]
[378111129,1754736639171,-460.0,0.00021917,2]
[378111130,1754736639180,-460.0,0.00021917,2]
[378111131,1754736639190,-460.0,0.00021917,2]